fUSD/lending_fUSD_20250708
["ID","MTS","AMOUNT","RATE_DAILY","PERIOD"]
[370278446,1751934658052,-179.56248801,0.0003123,7]
[370278447,1751934658063,-460.0,0.0003123,7]
[370278448,1751934658072,-460.0,0.0003123,7]
[370278449,1751934658082,-460.0,0.0003123,7]
[370278450,1751934658091,-460.0,0.0003123,7]
[370278451,1751934658100,-460.0,0.0003123,7]
[370278452,1751934658111,-460.0,0.0003123,7]
[370278453,1751934658121,-460.0,0.0003123,7]
[370278454,1751934658130,-237.64356231,0.0003123,7]
[370278455,1751934658139,-460.0,0.0003123,7]
[370278456,1751934658149,-460.0,0.0003123,7]
[370278457,1751934658159,-460.0,0.0003123,7]
[370278458,1751934658168,-460.0,0.0003123,7]
[370278459,1751934658177,-434.46,0.0003123,7]
[370278460,1751934658187,-460.0,0.0003123,7]
[370278461,1751934658196,-552.89,0.0003123,7]
[370278462,1751934658206,-460.0,0.0003123,7]
[370278463,1751934658216,-1638.91,0.0003123,7]
[370278464,1751934658225,-460.0,0.0003123,7]
[370278465,1751934658235,-460.0,0.0003123,7]
[370278466,1751934658244,-317.09,0.0003123,7]
[370278467,1751934658254,-460.0,0.0003123,7]
[370278468,1751934658263,-421.16,0.0003123,7]
[370278469,1751934658273,-460.0,0.0003123,7]
[370278470,1751934658282,-460.0,0.0003123,7]
[370278471,1751934658292,-460.0,0.0003123,7]
[370278472,1751934658301,-460.0,0.0003123,7]
[370278473,1751934658311,-460.0,0.0003123,7]
[370278474,1751934658320,-460.0,0.0003123,7]
[370278475,1751934658330,-460.0,0.0003123,7]
[370278476,1751934658339,-460.0,0.0003123,7]
[370278477,1751934658350,-338.16,0.0003123,7]
[370278478,1751934658361,-181.859006,0.0003123,7]
[370278479,1751934658380,-278.140994,0.0003123,7]
[370278480,1751934658389,-460.0,0.0003123,7]
[370278481,1751934658400,-346.309006,0.0003123,7]
[370278482,1751934658411,-113.690994,0.0003123,7]
[370278483,1751934658420,-185.539006,0.0003123,7]
[370278484,1751934658439,-735.94,0.00030956,7]
[370278485,1751934658451,-274.460994,0.0003123,7]
[370278486,1751934658460,-440.77,0.0003123,7]
[370278487,1751934658469,-490.0,0.0003123,7]
[370278488,1751934658478,-894.16,0.0003123,7]
[370278489,1751934658487,-460.0,0.0003123,7]
[370278490,1751934658496,-460.0,0.0003123,7]
[370278491,1751934658505,-486.28,0.0003123,7]
[370278492,1751934658514,-490.0,0.0003123,7]
[370278493,1751934658524,-460.0,0.0003123,7]
[370278494,1751934658533,-765.39,0.0003123,7]
[370278495,1751934658542,-460.0,0.0003123,7]
[370278496,1751934658552,-476.08,0.0003123,7]
[370278497,1751934658561,-497.89,0.0003123,7]
[370278498,1751934658570,-706.26,0.0003123,7]
[370278499,1751934658579,-490.0,0.0003123,7]
[370278500,1751934658589,-460.0,0.0003123,7]
[370278501,1751934658598,-460.0,0.0003123,7]
[370278502,1751934658607,-460.0,0.0003123,7]
[370278503,1751934658616,-460.0,0.0003123,7]
[370278504,1751934658625,-698.6,0.0003123,7]
[370278505,1751934658634,-173.77,0.0003123,7]
[370278506,1751934658643,-460.0,0.0003123,7]
[370278507,1751934658653,-209.19,0.0003123,7]
[370278508,1751934658663,-460.0,0.0003123,7]
[370278509,1751934658672,-574.3,0.0003123,7]
[370278510,1751934658682,-460.0,0.0003123,7]
[370278511,1751934658691,-460.0,0.0003123,7]
[370278512,1751934658700,-460.0,0.0003123,7]
[370278513,1751934658710,-490.92,0.0003123,7]
[370278514,1751934658720,-713.17,0.0003123,7]
[370278515,1751934658730,-460.0,0.0003123,7]
[370278516,1751934658739,-460.0,0.0003123,7]
[370278517,1751934658748,-460.0,0.0003123,7]
[370278518,1751934658757,-460.0,0.0003123,7]
[370278519,1751934658767,-778.28,0.0003123,7]
[370278520,1751934658777,-460.0,0.0003123,7]
[370278521,1751934658786,-460.0,0.0003123,7]
[370278522,1751934658796,-400.11,0.0003123,7]
[370278523,1751934658805,-460.0,0.0003123,7]
[370278524,1751934658814,-2469.19,0.0003123,7]
[370278525,1751934658824,-460.0,0.0003123,7]
[370278526,1751934658832,-460.0,0.0003123,7]
[370278527,1751934658842,-353.34,0.0003123,7]
[370278528,1751934658851,-460.0,0.0003123,7]
[370278529,1751934658861,-460.0,0.0003123,7]
[370278530,1751934658870,-460.0,0.0003123,7]
[370278531,1751934658880,-460.0,0.0003123,7]
[370278532,1751934658889,-460.0,0.0003123,7]
[370278533,1751934658899,-460.0,0.0003123,7]
[370278534,1751934658909,-352.27,0.0003123,7]
[370278535,1751934658918,-460.0,0.0003123,7]
[370278536,1751934658927,-460.0,0.0003123,7]
[370278537,1751934658936,-599.18,0.0003123,7]
[370278538,1751934658945,-460.0,0.0003123,7]
[370278539,1751934658953,-460.0,0.0003123,7]
[370278540,1751934658962,-590.33,0.0003123,7]
[370278541,1751934658972,-543.09,0.0003123,7]
[370278542,1751934658981,-525.14,0.0003123,7]
[370278543,1751934658990,-460.0,0.0003123,7]
[370278544,1751934658999,-460.0,0.0003123,7]
[370278545,1751934659008,-460.0,0.0003123,7]
[370278546,1751934659017,-460.0,0.0003123,7]
[370278547,1751934659027,-421.48,0.0003123,7]
[370278548,1751934659035,-624.66,0.0003123,7]
[370278549,1751934659045,-247.02,0.0003123,7]
[370278550,1751934659054,-460.0,0.0003123,7]
[370278551,1751934659063,-460.0,0.0003123,7]
[370278552,1751934659072,-460.0,0.0003123,7]
[370278553,1751934659082,-460.0,0.0003123,7]
[370278554,1751934659091,-460.0,0.0003123,7]
[370278555,1751934659100,-460.0,0.0003123,7]
[370278556,1751934659110,-460.0,0.0003123,7]
[370278557,1751934659119,-460.0,0.0003123,7]
[370278558,1751934659128,-746.89,0.0003123,7]
[370278559,1751934659137,-573.43,0.0003123,7]
[370278560,1751934659146,-299.56,0.0003123,7]
[370278561,1751934659156,-655.23,0.0003123,7]
[370278562,1751934659165,-460.0,0.0003123,7]
[370278563,1751934659174,-159.4,0.0003123,7]
[370278564,1751934659183,-603.48,0.0003123,7]
[370278565,1751934659192,-474.99,0.0003123,7]
[370278566,1751934659202,-460.0,0.0003123,7]
[370278567,1751934659211,-460.0,0.0003123,7]
[370278568,1751934659220,-460.0,0.0003123,7]
[370278569,1751934659229,-1760.16,0.0003123,7]
[370278570,1751934659239,-1438.98,0.0003123,7]
[370278571,1751934659248,-489.25,0.0003123,7]
[370278572,1751934659257,-460.0,0.0003123,7]
[370278573,1751934659266,-460.0,0.0003123,7]
[370278574,1751934659275,-460.0,0.0003123,7]
[370278575,1751934659285,-578.91,0.0003123,7]
[370278576,1751934659295,-460.0,0.0003123,7]
[370278577,1751934659304,-196.71,0.0003123,7]
[370278578,1751934659313,-460.0,0.0003123,7]
[370278579,1751934659324,-460.0,0.0003123,7]
[370278580,1751934659333,-156.27,0.0003123,7]
[370278581,1751934659343,-460.0,0.0003123,7]
[370278582,1751934659352,-1078.36,0.0003123,7]
[370278583,1751934659362,-460.0,0.0003123,7]
[370278584,1751934659374,-460.0,0.0003123,7]
[370278585,1751934659383,-460.0,0.0003123,7]
[370278586,1751934659392,-184.66,0.0003123,7]
[370278587,1751934659402,-460.0,0.0003123,7]
[370278588,1751934659411,-1395.84,0.0003123,7]
[370278589,1751934659421,-460.0,0.0003123,7]
[370278590,1751934659431,-460.0,0.0003123,7]
[370278591,1751934659440,-460.0,0.0003123,7]
[370278592,1751934659449,-460.0,0.0003123,7]
[370278593,1751934659458,-460.0,0.0003123,7]
[370278594,1751934659467,-517.13,0.0003123,7]
[370278595,1751934659477,-2407.49,0.0003123,7]
[370278596,1751934659486,-862.9,0.0003123,7]
[370278597,1751934659495,-460.0,0.0003123,7]
[370278598,1751934659505,-460.0,0.0003123,7]
[370278599,1751934659514,-151.0,0.0003123,7]
[370278600,1751934659524,-460.0,0.0003123,7]
[370278601,1751934659533,-460.0,0.0003123,7]
[370278602,1751934659542,-514.11,0.0003123,7]
[370278603,1751934659551,-460.0,0.0003123,7]
[370278604,1751934659560,-460.0,0.0003123,7]
[370278605,1751934659569,-460.0,0.0003123,7]
[370278606,1751934659578,-151.482131,0.0003123,7]
[370278607,1751934659587,-151.0,0.0003123,7]
[370278608,1751934659597,-460.0,0.0003123,7]
[370278609,1751934659606,-460.0,0.0003123,7]
[370278610,1751934659615,-648.67,0.0003123,7]
[370278611,1751934659624,-1275.91,0.0003123,7]
[370278612,1751934659633,-460.0,0.0003123,7]
[370278613,1751934659642,-460.0,0.0003123,7]
[370278614,1751934659652,-16394.96,0.0003123,7]
[370278615,1751934659662,-765.21,0.0003123,7]
[370278616,1751934659671,-490.0,0.0003123,7]
[370278617,1751934659679,-493.97,0.0003123,7]
[370278618,1751934659689,-549.7,0.0003123,7]
[370278619,1751934659698,-460.0,0.0003123,7]
[370278620,1751934659707,-460.0,0.0003123,7]
[370278621,1751934659716,-227.85,0.00031231,7]
[370278622,1751934659725,-466.75,0.00031232,7]
[370278623,1751934659734,-353.75,0.0003128,2]
[370278624,1751934659743,-200.0,0.000313,2]
[370278625,1751934659753,-2173.78143212,0.00031354,2]
[370278626,1751934659762,-353.75,0.00031425,2]
[370278627,1751934659771,-12176.0,0.00031479,2]
[370278628,1751934659781,-1614.0,0.00031479,2]
[370278629,1751934659790,-500.0,0.00031484,7]
[370278630,1751934659799,-500.0,0.00031484,7]
[370278631,1751934659807,-500.0,0.00031484,7]
[370278632,1751934659818,-1526.16730184,0.00031486,25]
[370278633,1751934659827,-460.0,0.00031494,7]
[370278634,1751934659837,-460.0,0.00031494,7]
[370278635,1751934659847,-632.05,0.00031494,7]
[370278636,1751934659856,-460.0,0.00031494,7]
[370278637,1751934659865,-460.0,0.00031494,7]
[370278638,1751934659875,-460.0,0.00031494,7]
[370278639,1751934659884,-460.0,0.00031494,7]
[370278640,1751934659893,-2199.3,0.00031494,7]
[370278641,1751934659903,-509.63,0.00031494,7]
[370278642,1751934659912,-1998.85,0.00031494,7]
[370278643,1751934659921,-210.31172994,0.00031494,3]
[370278644,1751934659930,-460.0,0.00031495,7]
[370278645,1751934659939,-460.0,0.00031495,7]
[370278646,1751934659948,-460.0,0.00031495,7]
[370278647,1751934659958,-460.0,0.00031495,7]
[370278648,1751934659967,-441.56,0.00031495,7]
[370278649,1751934659976,-460.0,0.00031495,7]
[370278650,1751934659986,-460.0,0.00031495,7]
[370278651,1751934660000,-593.16,0.00031495,7]
[370278652,1751934660010,-460.0,0.00031495,7]
[370278653,1751934660020,-497.01,0.00031495,7]
[370278654,1751934660029,-460.0,0.00031495,7]
[370278655,1751934660038,-460.0,0.00031495,7]
[370278656,1751934660048,-218.27,0.00031501,7]
[370278657,1751934660058,-189.75,0.00031501,7]
[370278658,1751934660067,-460.0,0.00031501,7]
[370278659,1751934660077,-460.0,0.00031501,7]
[370278660,1751934660087,-460.0,0.00031501,7]
[370278661,1751934660096,-460.0,0.00031501,7]
[370278662,1751934660107,-460.0,0.00031501,7]
[370278663,1751934660117,-201.29,0.00031501,7]
[370278664,1751934660128,-460.0,0.00031501,7]
[370278665,1751934660139,-460.0,0.00031501,7]
[370278666,1751934660148,-460.0,0.00031501,7]
[370278667,1751934660158,-1458.97,0.00031501,7]
[370278668,1751934660168,-460.0,0.00031501,7]
[370278669,1751934660178,-171.51,0.00031501,7]
[370278670,1751934660187,-460.0,0.00031501,7]
[370278671,1751934660197,-166.027969,0.00031501,7]
[370278672,1751934660206,-554.700179,0.00031501,7]
[370278673,1751934660216,-981.098,0.00031501,7]
[370278674,1751934660225,-1084.767978,0.00031501,7]
[370278675,1751934660236,-1378.71,0.00031501,7]
[370278676,1751934660246,-460.0,0.00031502,7]
[370278677,1751934660258,-460.0,0.00031503,7]
[370278678,1751934660267,-460.0,0.00031503,7]
[370278679,1751934660276,-460.0,0.00031503,7]
[370278680,1751934660286,-369.37,0.00031503,7]
[370278681,1751934660295,-460.0,0.00031503,7]
[370278682,1751934660305,-460.0,0.00031503,7]
[370278683,1751934660314,-353.57,0.00031503,7]
[370278684,1751934660324,-460.0,0.00031503,7]
[370278685,1751934660334,-460.0,0.00031503,7]
[370278686,1751934660343,-329.13,0.00031503,7]
[370278687,1751934660352,-460.0,0.00031503,7]
[370278688,1751934660362,-542.01,0.00031503,7]
[370278689,1751934660375,-460.0,0.00031503,7]
[370278690,1751934660384,-460.0,0.00031503,7]
[370278691,1751934660393,-460.0,0.00031503,7]
[370278692,1751934660403,-232.06,0.00031503,7]
[370278693,1751934660414,-855.33,0.00031503,7]
[370278694,1751934660423,-535.95736474,0.00031503,7]
[370278695,1751934660432,-460.0,0.00031503,7]
[370278696,1751934660441,-670.04,0.00031503,7]
[370278697,1751934660450,-460.0,0.00031503,7]
[370278698,1751934660460,-460.0,0.00031503,7]
[370278699,1751934660468,-1888.63,0.00031503,7]
[370278700,1751934660478,-460.0,0.00031503,7]
[370278701,1751934660487,-460.0,0.00031503,7]
[370278702,1751934660496,-460.0,0.00031503,7]
[370278703,1751934660505,-460.0,0.00031503,7]
[370278704,1751934660514,-460.0,0.00031503,7]
[370278705,1751934660524,-460.0,0.00031503,7]
[370278706,1751934660533,-519.83,0.00031503,7]
[370278707,1751934660543,-460.0,0.00031503,7]
[370278708,1751934660552,-460.0,0.00031503,7]
[370278709,1751934660562,-535.94,0.00031503,7]
[370278710,1751934660571,-511.62,0.00031503,7]
[370278711,1751934660580,-1208.55,0.00031503,7]
[370278712,1751934660590,-734.55,0.00031503,7]
[370278713,1751934660600,-460.0,0.00031503,7]
[370278714,1751934660608,-557.86,0.00031503,7]
[370278715,1751934660618,-460.0,0.00031503,7]
[370278716,1751934660628,-460.0,0.00031503,7]
[370278717,1751934660637,-460.0,0.00031503,7]
[370278718,1751934660650,-460.0,0.00031504,7]
[370278719,1751934660660,-460.0,0.00031504,7]
[370278720,1751934660670,-367.94,0.00031504,7]
[370278721,1751934660680,-460.0,0.00031504,7]
[370278722,1751934660690,-460.0,0.00031504,7]
[370278723,1751934660700,-243.42,0.00031504,7]
[370278724,1751934660710,-460.0,0.00031504,7]
[370278725,1751934660719,-460.0,0.00031504,7]
[370278726,1751934660729,-550.31,0.00031504,7]
[370278727,1751934660738,-460.0,0.00031504,7]
[370278728,1751934660747,-460.0,0.00031504,7]
[370278729,1751934660758,-484.3,0.00031504,7]
[370278730,1751934660769,-460.0,0.00031504,7]
[370278731,1751934660778,-460.0,0.00031504,7]
[370278732,1751934660788,-342.42,0.00031504,7]
[370278733,1751934660797,-460.0,0.00031504,7]
[370278734,1751934660806,-227.41,0.00031504,7]
[370278735,1751934660816,-460.0,0.00031504,7]
[370278736,1751934660826,-460.0,0.00031504,7]
[370278737,1751934660835,-460.0,0.00031504,7]
[370278738,1751934660844,-424.38,0.00031504,7]
[370278739,1751934660853,-460.0,0.00031504,7]
[370278740,1751934660862,-481.76,0.00031504,7]
[370278741,1751934660871,-351.63,0.00031504,7]
[370278742,1751934660882,-460.0,0.00031504,7]
[370278743,1751934661029,-423.47,0.00031504,7]
[370278744,1751934661039,-460.0,0.00031504,7]
[370278745,1751934661048,-460.0,0.00031504,7]
[370278746,1751934661057,-357.99,0.00031504,7]
[370278747,1751934661066,-660.76,0.00031504,7]
[370278748,1751934661076,-403.81,0.00031504,7]
[370278749,1751934661086,-460.0,0.00031504,7]
[370278750,1751934661096,-563.56,0.00031504,7]
[370278751,1751934661106,-460.0,0.00031504,7]
[370278752,1751934661117,-511.2,0.00031504,7]
[370278753,1751934661126,-460.0,0.00031504,7]
[370278754,1751934661135,-589.69,0.00031504,7]
[370278755,1751934661145,-460.0,0.00031504,7]
[370278756,1751934661154,-500.51,0.00031504,7]
[370278757,1751934661163,-540.04,0.00031504,7]
[370278758,1751934661173,-460.0,0.00031504,7]
[370278759,1751934661184,-460.0,0.00031504,7]
[370278760,1751934661194,-460.0,0.00031504,7]
[370278761,1751934661203,-460.0,0.00031504,7]
[370278762,1751934661213,-605.256712,0.00031504,7]
[370278763,1751934661223,-460.0,0.00031504,7]
[370278764,1751934661232,-460.0,0.00031504,7]
[370278765,1751934661243,-460.0,0.00031504,7]
[370278766,1751934661252,-460.0,0.00031504,7]
[370278767,1751934661262,-603.24458882,0.00031504,7]
[370278768,1751934661271,-347.86,0.00031504,7]
[370278769,1751934661284,-399.25,0.00031504,7]
[370278770,1751934661294,-1638.91,0.00031504,7]
[370278771,1751934661303,-460.0,0.00031504,7]
[370278772,1751934661313,-460.0,0.00031504,7]
[370278773,1751934661323,-460.0,0.00031504,7]
[370278774,1751934661332,-460.0,0.00031504,7]
[370278775,1751934661342,-460.0,0.00031504,7]
[370278776,1751934661351,-460.0,0.00031504,7]
[370278777,1751934661360,-460.0,0.00031504,7]
[370278778,1751934661370,-373.03,0.00031504,7]
[370278779,1751934661381,-460.0,0.00031504,7]
[370278780,1751934661391,-364.7,0.00031504,7]
[370278781,1751934661400,-460.0,0.00031504,7]
[370278782,1751934661409,-169.92,0.00031504,7]
[370278783,1751934661419,-460.0,0.00031504,7]
[370278784,1751934661430,-460.0,0.00031504,7]
[370278785,1751934661440,-460.0,0.00031504,7]
[370278786,1751934661450,-894.16,0.00031504,7]
[370278787,1751934661462,-359.33,0.00031504,7]
[370278788,1751934661472,-460.0,0.00031504,7]
[370278789,1751934661484,-765.39,0.00031504,7]
[370278790,1751934661493,-460.0,0.00031504,7]
[370278791,1751934661503,-468.02,0.00031504,7]
[370278792,1751934661512,-497.89,0.00031504,7]
[370278793,1751934661522,-706.26,0.00031504,7]
[370278794,1751934661530,-460.0,0.00031504,7]
[370278795,1751934661540,-460.0,0.00031504,7]
[370278796,1751934661549,-460.0,0.00031504,7]
[370278797,1751934661558,-460.0,0.00031504,7]
[370278798,1751934661567,-698.6,0.00031504,7]
[370278799,1751934661576,-460.0,0.00031504,7]
[370278800,1751934661585,-460.0,0.00031504,7]
[370278801,1751934661595,-460.0,0.00031504,7]
[370278802,1751934661604,-460.0,0.00031504,7]
[370278803,1751934661614,-713.17,0.00031504,7]
[370278804,1751934661622,-460.0,0.00031504,7]
[370278805,1751934661631,-460.0,0.00031504,7]
[370278806,1751934661641,-230.85,0.00031504,7]
[370278807,1751934661651,-460.0,0.00031504,7]
[370278808,1751934661660,-778.28,0.00031504,7]
[370278809,1751934661670,-460.0,0.00031504,7]
[370278810,1751934661679,-460.0,0.00031504,7]
[370278811,1751934661689,-460.0,0.00031504,7]
[370278812,1751934661698,-2469.19,0.00031504,7]
[370278813,1751934661707,-460.0,0.00031504,7]
[370278814,1751934661716,-460.0,0.00031504,7]
[370278815,1751934661726,-460.0,0.00031504,7]
[370278816,1751934661735,-460.0,0.00031504,7]
[370278817,1751934661746,-460.0,0.00031504,7]
[370278818,1751934661755,-460.0,0.00031504,7]
[370278819,1751934661765,-460.0,0.00031504,7]
[370278820,1751934661774,-460.0,0.00031504,7]
[370278821,1751934661783,-460.0,0.00031504,7]
[370278822,1751934661793,-460.0,0.00031504,7]
[370278823,1751934661802,-599.18,0.00031504,7]
[370278824,1751934661811,-460.0,0.00031504,7]
[370278825,1751934661820,-460.0,0.00031504,7]
[370278826,1751934661830,-525.14,0.00031504,7]
[370278827,1751934661839,-460.0,0.00031504,7]
[370278828,1751934661849,-329.06,0.00031504,7]
[370278829,1751934661858,-460.0,0.00031504,7]
[370278830,1751934661867,-171.01,0.00031504,7]
[370278831,1751934661876,-624.66,0.00031504,7]
[370278832,1751934661886,-460.0,0.00031504,7]
[370278833,1751934661895,-460.0,0.00031504,7]
[370278834,1751934661906,-593.57,0.00031504,7]
[370278835,1751934661916,-460.0,0.00031504,7]
[370278836,1751934661925,-460.0,0.00031504,7]
[370278837,1751934661934,-460.0,0.00031504,7]
[370278838,1751934661944,-460.0,0.00031504,7]
[370278839,1751934661953,-460.0,0.00031504,7]
[370278840,1751934661963,-746.89,0.00031504,7]
[370278841,1751934661972,-573.43,0.00031504,7]
[370278842,1751934661981,-655.23,0.00031504,7]
[370278843,1751934661990,-460.0,0.00031504,7]
[370278844,1751934661999,-167.87,0.00031504,7]
[370278845,1751934662009,-460.0,0.00031504,7]
[370278846,1751934662019,-1760.16,0.00031504,7]
[370278847,1751934662028,-460.0,0.00031504,7]
[370278848,1751934662038,-1438.98,0.00031504,7]
[370278849,1751934662048,-489.25,0.00031504,7]
[370278850,1751934662057,-460.0,0.00031504,7]
[370278851,1751934662067,-460.0,0.00031504,7]
[370278852,1751934662076,-460.0,0.00031504,7]
[370278853,1751934662085,-328.84,0.00031504,7]
[370278854,1751934662095,-460.0,0.00031504,7]
[370278855,1751934662104,-460.0,0.00031504,7]
[370278856,1751934662115,-245.22,0.00031504,7]
[370278857,1751934662124,-1078.36,0.00031504,7]
[370278858,1751934662134,-460.0,0.00031504,7]
[370278859,1751934662144,-460.0,0.00031504,7]
[370278860,1751934662155,-464.15,0.00031504,7]
[370278861,1751934662164,-460.0,0.00031504,7]
[370278862,1751934662174,-1395.84,0.00031504,7]
[370278863,1751934662183,-460.0,0.00031504,7]
[370278864,1751934662193,-460.0,0.00031504,7]
[370278865,1751934662202,-493.6,0.00031504,7]
[370278866,1751934662211,-460.0,0.00031504,7]
[370278867,1751934662220,-460.0,0.00031504,7]
[370278868,1751934662230,-2407.49,0.00031504,7]
[370278869,1751934662240,-862.9,0.00031504,7]
[370278870,1751934662249,-521.66,0.00031504,7]
[370278871,1751934662259,-460.0,0.00031504,7]
[370278872,1751934662270,-460.0,0.00031504,7]
[370278873,1751934662279,-339.04,0.00031504,7]
[370278874,1751934662289,-441.87966305,0.00031504,7]
[370278875,1751934662298,-460.0,0.00031504,7]
[370278876,1751934662308,-460.0,0.00031504,7]
[370278877,1751934662317,-460.0,0.00031504,7]
[370278878,1751934662327,-648.67,0.00031504,7]
[370278879,1751934662336,-460.0,0.00031504,7]
[370278880,1751934662346,-1275.91,0.00031504,7]
[370278881,1751934662356,-300.93,0.00031504,7]
[370278882,1751934662365,-460.0,0.00031504,7]
[370278883,1751934662378,-16394.96,0.00031504,7]
[370278884,1751934662387,-765.21,0.00031504,7]
[370278885,1751934662397,-493.97,0.00031504,7]
[370278886,1751934662409,-460.0,0.00031504,7]
[370278887,1751934662418,-460.0,0.00031504,7]
[370278888,1751934662427,-466.75,0.00031506,7]
[370278889,1751934662437,-353.75,0.0003157,2]
[370278890,1751934662446,-200.0,0.00031613,2]
[370278891,1751934662455,-210.0,0.0003166,2]
[370278892,1751934662464,-353.75,0.00031715,2]
[370278893,1751934662474,-167.27,0.00031715,2]
[370278894,1751934662483,-460.0,0.00031768,7]
[370278895,1751934662493,-460.0,0.00031768,7]
[370278896,1751934662502,-632.05,0.00031768,7]
[370278897,1751934662511,-460.0,0.00031768,7]
[370278898,1751934662521,-460.0,0.00031768,7]
[370278899,1751934662530,-460.0,0.00031768,7]
[370278900,1751934662540,-460.0,0.00031768,7]
[370278901,1751934662550,-2199.3,0.00031768,7]
[370278902,1751934662559,-509.63,0.00031768,7]
[370278903,1751934662569,-1998.85,0.00031768,7]
[370278904,1751934662578,-460.0,0.00031769,7]
[370278905,1751934662587,-301.95,0.00031769,7]
[370278906,1751934662596,-460.0,0.00031769,7]
[370278907,1751934662605,-460.0,0.00031769,7]
[370278908,1751934662614,-460.0,0.00031769,7]
[370278909,1751934662623,-460.0,0.00031769,7]
[370278910,1751934662633,-284.85,0.00031769,7]
[370278911,1751934662643,-460.0,0.00031769,7]
[370278912,1751934662653,-460.0,0.00031769,7]
[370278913,1751934662662,-460.0,0.00031775,7]
[370278914,1751934662671,-460.0,0.00031775,7]
[370278915,1751934662681,-460.0,0.00031775,7]
[370278916,1751934662690,-460.0,0.00031775,7]
[370278917,1751934662701,-257.95,0.00031775,7]
[370278918,1751934662712,-460.0,0.00031775,7]
[370278919,1751934662724,-460.0,0.00031775,7]
[370278920,1751934662734,-460.0,0.00031775,7]
[370278921,1751934662744,-1458.97,0.00031775,7]
[370278922,1751934662754,-460.0,0.00031775,7]
[370278923,1751934662763,-460.0,0.00031775,7]
[370278924,1751934662772,-166.027969,0.00031775,7]
[370278925,1751934662782,-554.700179,0.00031775,7]
[370278926,1751934662792,-158.299444,0.00031775,7]
[370278927,1751934662801,-981.098,0.00031775,7]
[370278928,1751934662810,-1084.767978,0.00031775,7]
[370278929,1751934662820,-1378.71,0.00031775,7]
[370278930,1751934662829,-178.23,0.00031776,7]
[370278931,1751934662838,-460.0,0.00031777,7]
[370278932,1751934662847,-460.0,0.00031777,7]
[370278933,1751934662856,-460.0,0.00031777,7]
[370278934,1751934662868,-460.0,0.00031777,7]
[370278935,1751934662878,-460.0,0.00031777,7]
[370278936,1751934662887,-460.0,0.00031777,7]
[370278937,1751934662898,-460.0,0.00031777,7]
[370278938,1751934662909,-460.0,0.00031777,7]
[370278939,1751934662918,-542.01,0.00031777,7]
[370278940,1751934662928,-460.0,0.00031777,7]
[370278941,1751934662938,-460.0,0.00031777,7]
[370278942,1751934662947,-460.0,0.00031777,7]
[370278943,1751934662957,-855.33,0.00031777,7]
[370278944,1751934662968,-460.0,0.00031777,7]
[370278945,1751934662978,-670.04,0.00031777,7]